fUSD/lending_fUSD_20250606
["ID","MTS","AMOUNT","RATE_DAILY","PERIOD"]
[364775779,1749238261151,-269.254107,0.0002789,7]
[364775780,1749238261160,-151.0,0.0002789,7]
[364775781,1749238261169,-685.7,0.0002789,5]
[364775782,1749238261179,-480.0,0.0002789,5]
[364775783,1749238261188,-887.66,0.0002789,5]
[364775784,1749238261197,-480.0,0.0002789,5]
[364775785,1749238261206,-1130.7,0.0002789,5]
[364775786,1749238261215,-480.0,0.0002789,5]
[364775787,1749238261225,-480.0,0.0002789,5]
[364775788,1749238261234,-2132.1,0.0002789,5]
[364775789,1749238261243,-480.0,0.0002789,5]
[364775790,1749238261252,-1647.92,0.0002789,5]
[364775791,1749238261262,-150.0,0.0002789,5]
[364775792,1749238261271,-834.35,0.0002789,5]
[364775793,1749238261281,-4392.99,0.0002789,5]
[364775794,1749238261290,-3015.43,0.0002789,5]
[364775795,1749238261300,-480.0,0.0002789,5]
[364775796,1749238261310,-597.0,0.0002789,5]
[364775797,1749238261318,-480.0,0.0002789,5]
[364775798,1749238261328,-1470.46,0.0002789,5]
[364775799,1749238261338,-1546.73,0.0002789,5]
[364775800,1749238261347,-1479.99,0.0002789,5]
[364775801,1749238261356,-1186.47,0.0002789,5]
[364775802,1749238261366,-514.62,0.0002789,5]
[364775803,1749238261375,-480.0,0.0002789,5]
[364775804,1749238261385,-835.23,0.0002789,5]
[364775805,1749238261394,-480.0,0.0002789,5]
[364775806,1749238261404,-1102.69,0.0002789,5]
[364775807,1749238261413,-689.03,0.0002789,5]
[364775808,1749238261423,-1040.68,0.0002789,5]
[364775809,1749238261433,-995.31,0.0002789,5]
[364775810,1749238261443,-480.0,0.0002789,5]
[364775811,1749238261452,-500.0,0.0002789,5]
[364775812,1749238261463,-523.71,0.0002789,5]
[364775813,1749238261473,-1046.65,0.0002789,5]
[364775814,1749238261483,-480.0,0.0002789,5]
[364775815,1749238261492,-480.0,0.0002789,5]
[364775816,1749238261503,-3516.83,0.0002789,5]
[364775817,1749238261516,-7192.4,0.0002789,5]
[364775818,1749238261529,-480.0,0.0002789,5]
[364775819,1749238261539,-480.0,0.0002789,5]
[364775820,1749238261550,-480.0,0.0002789,5]
[364775821,1749238261559,-1068.47,0.0002789,5]
[364775822,1749238261569,-843.7,0.0002789,5]
[364775823,1749238261578,-480.0,0.0002789,5]
[364775824,1749238261588,-1025.1,0.0002789,5]
[364775825,1749238261597,-579.69,0.0002789,5]
[364775826,1749238261607,-618.2,0.0002789,5]
[364775827,1749238261616,-606.91,0.0002789,5]
[364775828,1749238261626,-480.0,0.0002789,5]
[364775829,1749238261636,-7137.4,0.0002789,5]
[364775830,1749238261645,-151.0,0.0002789,7]
[364775831,1749238261655,-480.0,0.0002789,5]
[364775832,1749238261664,-2026.65,0.0002789,5]
[364775833,1749238261674,-11496.53,0.0002789,5]
[364775834,1749238261685,-2994.18,0.0002789,5]
[364775835,1749238261695,-151.0,0.0002789,7]
[364775836,1749238261704,-1784.57,0.0002789,5]
[364775837,1749238261714,-514.45,0.0002789,5]
[364775838,1749238261724,-1232.611643,0.0002789,7]
[364775839,1749238261733,-480.0,0.0002789,5]
[364775840,1749238261743,-480.0,0.0002789,5]
[364775841,1749238261752,-480.0,0.0002789,5]
[364775842,1749238261761,-3152.9,0.0002789,5]
[364775843,1749238261771,-1232.611643,0.0002789,7]
[364775844,1749238261780,-1227.31,0.0002789,5]
[364775845,1749238261789,-480.0,0.0002789,5]
[364775846,1749238261799,-497.39,0.0002789,5]
[364775847,1749238261808,-480.0,0.0002789,5]
[364775848,1749238261818,-4337.15,0.0002789,5]
[364775849,1749238261827,-480.0,0.0002789,5]
[364775850,1749238261836,-269.073679,0.0002789,7]
[364775851,1749238261845,-1547.12,0.0002789,5]
[364775852,1749238261854,-480.0,0.0002789,5]
[364775853,1749238261864,-3302.16,0.0002789,5]
[364775854,1749238261873,-189.938106,0.0002789,7]
[364775855,1749238261882,-533.36,0.0002789,5]
[364775856,1749238261891,-747.92,0.0002789,5]
[364775857,1749238261900,-151.0,0.0002789,7]
[364775858,1749238261910,-1427.98,0.0002789,5]
[364775859,1749238261919,-572.16,0.0002789,5]
[364775860,1749238261929,-577.87,0.0002789,5]
[364775861,1749238261938,-480.0,0.0002789,5]
[364775862,1749238261947,-189.938106,0.0002789,7]
[364775863,1749238261956,-151.0,0.0002789,7]
[364775864,1749238261965,-151.0,0.0002789,7]
[364775865,1749238261974,-1647.97,0.0002789,5]
[364775866,1749238261983,-480.0,0.0002789,5]
[364775867,1749238261992,-480.0,0.0002789,5]
[364775868,1749238262002,-972.75,0.0002789,5]
[364775869,1749238262011,-1458.85,0.0002789,5]
[364775870,1749238262020,-551.69,0.0002789,5]
[364775871,1749238262029,-480.0,0.0002789,5]
[364775872,1749238262038,-1271.48,0.0002789,5]
[364775873,1749238262047,-151.0,0.0002789,7]
[364775874,1749238262056,-2558.54,0.0002789,5]
[364775875,1749238262065,-744.59,0.0002789,5]
[364775876,1749238262075,-535.17,0.0002789,5]
[364775877,1749238262084,-151.210757,0.0002789,7]
[364775878,1749238262094,-1780.07,0.0002789,5]
[364775879,1749238262103,-825.48,0.0002789,5]
[364775880,1749238262112,-1087.45,0.0002789,5]
[364775881,1749238262121,-480.0,0.0002789,5]
[364775882,1749238262130,-3642.41,0.0002789,5]
[364775883,1749238262139,-222.79240423,0.0002789,5]
[364775884,1749238262148,-602.35,0.0002789,5]
[364775885,1749238262157,-457.404501,0.0002789,5]
[364775886,1749238262166,-980.76,0.0002789,5]
[364775887,1749238262175,-2952.08,0.0002789,5]
[364775888,1749238262185,-1491.88,0.0002789,5]
[364775889,1749238262193,-480.0,0.0002789,5]
[364775890,1749238262203,-513.98,0.0002789,5]
[364775891,1749238262212,-545.79,0.0002789,5]
[364775892,1749238262221,-480.0,0.0002789,5]
[364775893,1749238262230,-480.0,0.0002789,5]
[364775894,1749238262239,-533.03,0.0002789,5]
[364775895,1749238262248,-1677.66,0.0002789,5]
[364775896,1749238262257,-480.0,0.0002789,5]
[364775897,1749238262267,-480.0,0.0002789,5]
[364775898,1749238262276,-4496.09,0.0002789,5]
[364775899,1749238262285,-1755.28,0.0002789,5]
[364775900,1749238262295,-662.984692,0.0002789,7]
[364775901,1749238262304,-1692.52,0.0002789,5]
[364775902,1749238262314,-662.984692,0.0002789,7]
[364775903,1749238262324,-1650.3,0.0002789,5]
[364775904,1749238262334,-835.24,0.0002789,5]
[364775905,1749238262344,-480.0,0.0002789,5]
[364775906,1749238262353,-480.0,0.0002789,2]
[364775907,1749238262363,-5267.72,0.0002789,5]
[364775908,1749238262373,-934.457951,0.0002789,5]
[364775909,1749238262384,-480.0,0.0002789,5]
[364775910,1749238262394,-480.0,0.0002789,5]
[364775911,1749238262404,-502.12,0.0002789,5]
[364775912,1749238262414,-729.42,0.0002789,5]
[364775913,1749238262423,-1800.89,0.0002789,5]
[364775914,1749238262433,-150.0,0.0002789,5]
[364775915,1749238262443,-699.03,0.0002789,5]
[364775916,1749238262452,-498.83,0.0002789,5]
[364775917,1749238262462,-1536.39,0.0002789,5]
[364775918,1749238262471,-5553.8,0.0002789,5]
[364775919,1749238262481,-698.46,0.0002789,2]
[364775920,1749238262490,-480.0,0.0002789,5]
[364775921,1749238262500,-480.0,0.0002789,5]
[364775922,1749238262513,-900.05,0.0002789,5]
[364775923,1749238262523,-694.21,0.0002789,5]
[364775924,1749238262532,-150.0,0.0002789,5]
[364775925,1749238262542,-2081.72,0.0002789,5]
[364775926,1749238262551,-480.0,0.0002789,5]
[364775927,1749238262561,-500.0,0.0002789,5]
[364775928,1749238262571,-1295.96,0.0002789,5]
[364775929,1749238262582,-150.0,0.0002789,5]
[364775930,1749238262591,-483.69,0.0002789,5]
[364775931,1749238262600,-484.44,0.0002789,5]
[364775932,1749238262610,-480.0,0.0002789,5]
[364775933,1749238262619,-10178.54,0.0002789,5]
[364775934,1749238262628,-480.0,0.0002789,5]
[364775935,1749238262639,-480.0,0.0002789,5]
[364775936,1749238262649,-2453.62,0.0002789,5]
[364775937,1749238262660,-295.89589825,0.0002789,5]
[364775938,1749238262670,-150.0,0.0002789,5]
[364775939,1749238262680,-7200.0,0.000279,10]
[364775940,1749238262691,-1000.0,0.000279,2]
[364775941,1749238262700,-150.0,0.00027902,2]
[364775942,1749238262712,-500.0,0.00027917,2]
[364775943,1749238262722,-787.0,0.00027917,5]
[364775944,1749238262731,-150.0,0.00027917,5]
[364775945,1749238262740,-150.0,0.00027917,5]
[364775946,1749238262750,-597.0,0.00027917,5]
[364775947,1749238262759,-500.0,0.00027917,5]
[364775948,1749238262769,-150.0,0.00027917,5]
[364775949,1749238262778,-150.0,0.00027917,5]
[364775950,1749238262788,-500.0,0.00027917,5]
[364775951,1749238262799,-150.0,0.00027917,5]
[364775952,1749238262808,-503.60598671,0.00027921,5]
[364775953,1749238262818,-150.0,0.00027927,2]
[364775954,1749238262827,-1154.3,0.00027941,2]
[364775955,1749238262837,-216.41901234,0.00027945,2]
[364775956,1749238262847,-787.0,0.00027945,5]
[364775957,1749238262857,-150.0,0.00027945,5]
[364775958,1749238262866,-150.0,0.00027945,5]
[364775959,1749238262875,-597.0,0.00027945,5]
[364775960,1749238262885,-500.0,0.00027945,5]
[364775961,1749238262895,-150.0,0.00027945,5]
[364775962,1749238262905,-150.0,0.00027945,5]
[364775963,1749238262915,-232.6910341,0.00027945,5]
[364775964,1749238262925,-150.0,0.00027945,5]
[364775965,1749238262935,-731.60272687,0.00027948,2]
[364775966,1749238262945,-150.0,0.0002796,2]
[364775967,1749238262954,-150.0,0.00027963,2]
[364775968,1749238262964,-822.24585724,0.00027964,2]
[364775969,1749238262973,-500.0,0.00027972,7]
[364775970,1749238262982,-787.0,0.00027972,5]
[364775971,1749238262991,-150.0,0.00027972,5]
[364775972,1749238263001,-150.0,0.00027972,5]
[364775973,1749238263011,-597.0,0.00027972,5]
[364775974,1749238263020,-500.0,0.00027972,5]
[364775975,1749238263029,-150.0,0.00027972,5]
[364775976,1749238263039,-150.0,0.00027972,5]
[364775977,1749238263048,-150.0,0.00027972,5]
[364775978,1749238263058,-150.0,0.00027976,2]
[364775979,1749238263067,-150.0,0.00027993,2]
[364775980,1749238263077,-30000.0,0.00027994,2]
[364775981,1749238263086,-150.0,0.00027999,2]
[364775982,1749238263096,-151.0,0.00027999,7]
[364775983,1749238263105,-787.0,0.00028,5]
[364775984,1749238263115,-150.0,0.00028,5]
[364775985,1749238263124,-150.0,0.00028,5]
[364775986,1749238263135,-597.0,0.00028,5]
[364775987,1749238263144,-291.03710801,0.00028,5]
[364775988,1749238263154,-150.0,0.00028,5]
[364775989,1749238263165,-150.0,0.00028,5]
[364775990,1749238263175,-150.0,0.00028,5]
[364775991,1749238263184,-50000.0,0.00028,2]
[364775992,1749238263193,-12124.45,0.00028,2]
[364775993,1749238263203,-278.34,0.00028,2]
[364775994,1749238263213,-262.91662911,0.00028,2]
[364775995,1749238263223,-1188.95986765,0.00028,5]
[364775996,1749238263233,-151.0,0.00028,7]
[364775997,1749238263243,-136262.88092377,0.00028,2]
[364775998,1749238263253,-1000.0,0.00028,2]
[364775999,1749238263263,-150.0,0.00028018,2]
[364776000,1749238263274,-25759.42077559,0.0002802,2]
[364776001,1749238263284,-151.0,0.0002802,7]
[364776002,1749238263294,-151.0,0.0002802,7]
[364776003,1749238263303,-151.0,0.0002802,7]
[364776004,1749238263313,-948.51001956,0.00028023,2]
[364776005,1749238263324,-787.0,0.00028027,5]
[364776006,1749238263334,-250.0,0.00028027,5]
[364776007,1749238263343,-250.0,0.00028027,5]
[364776008,1749238263354,-597.0,0.00028027,5]
[364776009,1749238263363,-250.0,0.00028027,5]
[364776010,1749238263373,-250.0,0.00028027,5]
[364776011,1749238263383,-250.0,0.00028027,5]
[364776012,1749238263393,-151.0,0.00028038,7]
[364776013,1749238263403,-151.0,0.00028038,7]
[364776014,1749238263412,-383.455473,0.00028038,7]
[364776015,1749238263422,-383.455473,0.00028038,7]
[364776016,1749238263431,-150.0,0.00028043,2]
[364776017,1749238263441,-151.931099,0.00028044,7]
[364776018,1749238263451,-151.0,0.00028044,7]
[364776019,1749238263460,-151.0,0.00028044,7]
[364776020,1749238263469,-151.0,0.00028044,7]
[364776021,1749238263479,-151.0,0.00028044,7]
[364776022,1749238263488,-151.0,0.00028044,7]
[364776023,1749238263498,-162.784764,0.00028044,7]
[364776024,1749238263510,-162.784764,0.00028044,7]
[364776025,1749238263519,-151.0,0.00028044,7]
[364776026,1749238263528,-151.0,0.00028044,7]
[364776027,1749238263538,-150.0,0.0002805,2]
[364776028,1749238263547,-1204.54,0.00028053,5]
[364776029,1749238263558,-1204.54,0.00028053,5]
[364776030,1749238263567,-151.0,0.00028054,7]
[364776031,1749238263577,-151.0,0.00028054,7]
[364776032,1749238263587,-151.0,0.00028054,7]
[364776033,1749238263596,-161.608265,0.00028054,7]
[364776034,1749238263605,-151.0,0.00028054,7]
[364776035,1749238263615,-157.040667,0.00028054,7]
[364776036,1749238263624,-383.455473,0.00028054,7]
[364776037,1749238263633,-383.455473,0.00028054,7]
[364776038,1749238263643,-151.0,0.00028054,7]
[364776039,1749238263652,-283.209103,0.00028054,7]
[364776040,1749238263662,-151.0,0.00028054,7]
[364776041,1749238263671,-151.0,0.00028054,7]
[364776042,1749238263681,-151.0,0.00028054,7]
[364776043,1749238263691,-151.0,0.00028054,7]
[364776044,1749238263700,-151.0,0.00028054,7]
[364776045,1749238263709,-151.0,0.00028054,7]
[364776046,1749238263719,-151.0,0.00028054,7]
[364776047,1749238263729,-151.0,0.00028054,7]
[364776048,1749238263738,-151.0,0.00028054,7]
[364776049,1749238263747,-151.0,0.00028054,7]
[364776050,1749238263756,-151.0,0.00028054,7]
[364776051,1749238263766,-151.0,0.00028054,7]
[364776052,1749238263776,-589.063325,0.00028054,7]
[364776053,1749238263786,-151.0,0.00028054,7]
[364776054,1749238263796,-151.0,0.00028054,7]
[364776055,1749238263805,-1027.574881,0.00028054,7]
[364776056,1749238263815,-1027.574881,0.00028054,7]
[364776057,1749238263825,-151.0,0.00028054,7]
[364776058,1749238263835,-151.0,0.00028054,7]
[364776059,1749238263844,-151.0,0.00028054,7]
[364776060,1749238263854,-151.0,0.00028054,7]
[364776061,1749238263863,-151.0,0.00028054,7]
[364776062,1749238263873,-151.0,0.00028054,7]
[364776063,1749238263883,-151.0,0.00028054,7]
[364776064,1749238263893,-151.0,0.00028054,7]
[364776065,1749238263902,-1184.242658,0.00028054,7]
[364776066,1749238263912,-1317.765658,0.00028054,5]
[364776067,1749238263922,-1184.242658,0.00028054,7]
[364776068,1749238263932,-1517.919858,0.00028054,5]
[364776069,1749238263942,-151.0,0.00028054,7]
[364776070,1749238263952,-151.0,0.00028054,7]
[364776071,1749238263962,-226.081769,0.00028054,7]
[364776072,1749238263972,-602.044555,0.00028054,7]
[364776073,1749238263982,-480.0,0.00028054,5]
[364776074,1749238263992,-602.044555,0.00028054,7]
[364776075,1749238264003,-261.054565,0.00028054,7]
[364776076,1749238264012,-151.0,0.00028054,7]
[364776077,1749238264023,-261.054565,0.00028054,7]
[364776078,1749238264032,-151.0,0.00028054,7]
[364776079,1749238264041,-151.0,0.00028054,7]
[364776080,1749238264051,-172.604956,0.00028054,7]
[364776081,1749238264061,-151.0,0.00028054,7]
[364776082,1749238264071,-172.604956,0.00028054,7]
[364776083,1749238264081,-480.0,0.00028054,5]
[364776084,1749238264091,-480.0,0.00028054,5]
[364776085,1749238264101,-151.0,0.00028054,7]
[364776086,1749238264111,-168.561443,0.00028054,5]
[364776087,1749238264121,-151.0,0.00028054,7]
[364776088,1749238264131,-151.0,0.00028054,7]
[364776089,1749238264141,-480.0,0.00028054,5]
[364776090,1749238264151,-151.0,0.00028054,7]
[364776091,1749238264162,-480.0,0.00028054,5]
[364776092,1749238264173,-176.288002,0.00028054,7]
[364776093,1749238264185,-176.288002,0.00028054,7]
[364776094,1749238264195,-480.0,0.00028054,5]
[364776095,1749238264206,-190.889101,0.00028054,7]
[364776096,1749238264216,-190.889101,0.00028054,7]
[364776097,1749238264227,-480.0,0.00028054,5]
[364776098,1749238264238,-480.0,0.00028054,5]
[364776099,1749238264248,-166.74833,0.00028054,7]
[364776100,1749238264258,-166.74833,0.00028054,7]
[364776101,1749238264269,-480.0,0.00028054,5]
[364776102,1749238264279,-290.092063,0.00028054,7]
[364776103,1749238264290,-290.092063,0.00028054,7]
[364776104,1749238264299,-151.0,0.00028054,7]
[364776105,1749238264310,-151.0,0.00028054,7]
[364776106,1749238264320,-395.142899,0.00028054,7]
[364776107,1749238264330,-395.142899,0.00028054,7]
[364776108,1749238264341,-488.54,0.00028054,5]
[364776109,1749238264351,-256.08438,0.00028054,7]
[364776110,1749238264361,-256.08438,0.00028054,7]
[364776111,1749238264371,-732.99,0.00028054,5]
[364776112,1749238264381,-480.0,0.00028054,5]
[364776113,1749238264391,-151.0,0.00028054,7]
[364776114,1749238264402,-594.44,0.00028054,5]
[364776115,1749238264413,-1080.27,0.00028054,5]
[364776116,1749238264423,-251.666273,0.00028054,7]
[364776117,1749238264433,-487.01,0.00028054,5]
[364776118,1749238264443,-480.0,0.00028054,5]
[364776119,1749238264456,-151.0,0.00028054,7]
[364776120,1749238264467,-480.0,0.00028054,5]
[364776121,1749238264477,-1121.24,0.00028054,5]
[364776122,1749238264487,-965.99,0.00028054,5]
[364776123,1749238264497,-151.0,0.00028054,7]
[364776124,1749238264508,-480.0,0.00028054,5]
[364776125,1749238264518,-480.0,0.00028054,5]
[364776126,1749238264527,-634.69,0.00028054,5]
[364776127,1749238264537,-164.369548,0.00028054,5]
[364776128,1749238264549,-657.28,0.00028054,5]
[364776129,1749238264559,-480.0,0.00028054,5]
[364776130,1749238264568,-1036.73,0.00028054,5]
[364776131,1749238264578,-700.4,0.00028054,5]
[364776132,1749238264587,-522.03,0.00028054,5]
[364776133,1749238264597,-480.0,0.00028054,5]
[364776134,1749238264606,-151.0,0.00028054,7]
[364776135,1749238264615,-480.0,0.00028054,5]
[364776136,1749238264625,-600.0,0.00028054,30]
[364776137,1749238264635,-772.01,0.00028054,5]
[364776138,1749238264644,-480.0,0.00028054,5]
[364776139,1749238264654,-480.0,0.00028054,5]
[364776140,1749238264664,-588.08,0.00028054,5]
[364776141,1749238264674,-510.66,0.00028054,5]
[364776142,1749238264685,-480.0,0.00028054,5]
[364776143,1749238264695,-151.0,0.00028054,7]
[364776144,1749238264705,-480.0,0.00028054,5]
[364776145,1749238264715,-480.0,0.00028054,5]
[364776146,1749238264725,-776.42,0.00028054,5]
[364776147,1749238264734,-570.13,0.00028054,5]
[364776148,1749238264745,-566.75,0.00028054,5]
[364776149,1749238264754,-891.4,0.00028054,5]
[364776150,1749238264763,-480.0,0.00028054,5]
[364776151,1749238264772,-741.477682,0.00028054,7]
[364776152,1749238264782,-851.49,0.00028054,5]
[364776153,1749238264791,-652.79,0.00028054,5]
[364776154,1749238264801,-480.0,0.00028054,5]
[364776155,1749238264810,-741.477682,0.00028054,7]
[364776156,1749238264819,-480.0,0.00028054,5]
[364776157,1749238264829,-151.0,0.00028054,7]
[364776158,1749238264838,-480.0,0.00028054,5]
[364776159,1749238264847,-875.61,0.00028054,5]
[364776160,1749238264856,-151.0,0.00028054,7]
[364776161,1749238264866,-533.65,0.00028054,5]
[364776162,1749238264875,-982.9,0.00028054,5]
[364776163,1749238264885,-480.0,0.00028054,5]
[364776164,1749238264894,-480.0,0.00028054,5]
[364776165,1749238264904,-724.05,0.00028054,5]
[364776166,1749238264915,-637.08,0.00028054,5]
[364776167,1749238264924,-511.37,0.00028054,5]
[364776168,1749238264933,-623.28,0.00028054,5]
[364776169,1749238264942,-480.0,0.00028054,5]
[364776170,1749238264951,-988.07,0.00028054,5]
[364776171,1749238264960,-151.0,0.00028054,7]
[364776172,1749238264970,-666.13,0.00028054,5]
[364776173,1749238264979,-480.0,0.00028054,5]
[364776174,1749238264988,-532.47024294,0.00028054,5]
[364776175,1749238264997,-480.0,0.00028054,5]
[364776176,1749238265006,-480.0,0.00028054,5]
[364776177,1749238265016,-956.4,0.00028054,5]
[364776178,1749238265026,-702.51,0.00028054,5]
[364776179,1749238265035,-480.0,0.00028054,5]
[364776180,1749238265045,-251.29728511,0.00028054,5]
[364776181,1749238265056,-480.0,0.00028054,5]
[364776182,1749238265065,-525.04,0.00028054,5]
[364776183,1749238265076,-545.11,0.00028054,5]
[364776184,1749238265086,-480.0,0.00028054,5]
[364776185,1749238265096,-480.0,0.00028054,5]
[364776186,1749238265107,-480.0,0.00028054,5]
[364776187,1749238265122,-548.91,0.00028054,5]
[364776188,1749238265131,-726.22,0.00028054,5]
[364776189,1749238265141,-1492.05,0.00028054,5]
[364776190,1749238265150,-151.715968,0.00028054,5]
[364776191,1749238265160,-480.0,0.00028054,5]
[364776192,1749238265169,-151.0,0.00028054,7]
[364776193,1749238265179,-747.69,0.00028054,5]
[364776194,1749238265188,-534.21,0.00028054,5]
[364776195,1749238265197,-317.999202,0.00028054,7]
[364776196,1749238265206,-480.0,0.00028054,5]
[364776197,1749238265215,-151.0,0.00028054,7]
[364776198,1749238265225,-532.30035709,0.00028054,5]
[364776199,1749238265234,-480.0,0.00028054,5]
[364776200,1749238265244,-317.999202,0.00028054,7]
[364776201,1749238265254,-813.04,0.00028054,5]
[364776202,1749238265263,-1118.221366,0.00028054,7]
[364776203,1749238265273,-709.62,0.00028054,5]
[364776204,1749238265283,-2345.629707,0.00028054,7]
[364776205,1749238265293,-1118.221366,0.00028054,7]
[364776206,1749238265302,-2345.629707,0.00028054,7]
[364776207,1749238265311,-480.0,0.00028054,5]
[364776208,1749238265321,-784.75,0.00028054,5]
[364776209,1749238265330,-769.75,0.00028054,5]
[364776210,1749238265339,-151.0,0.00028054,7]
[364776211,1749238265349,-480.0,0.00028054,5]
[364776212,1749238265359,-480.0,0.00028054,5]
[364776213,1749238265368,-1609.82,0.00028054,5]
[364776214,1749238265378,-1327.01,0.00028054,5]
[364776215,1749238265389,-884.97,0.00028054,5]
[364776216,1749238265398,-480.0,0.00028054,5]
[364776217,1749238265410,-480.0,0.00028054,5]
[364776218,1749238265420,-556.78,0.00028054,5]
[364776219,1749238265430,-151.0,0.00028054,7]
[364776220,1749238265441,-480.0,0.00028054,5]
[364776221,1749238265451,-472.40955291,0.00028054,5]
[364776222,1749238265462,-234.768306,0.00028054,7]
[364776223,1749238265472,-151.0,0.00028054,7]
[364776224,1749238265482,-837.78,0.00028054,5]
[364776225,1749238265492,-233.095165,0.00028054,7]
[364776226,1749238265503,-722.94,0.00028054,5]
[364776227,1749238265518,-233.095165,0.00028054,7]
[364776228,1749238265528,-918.951478,0.00028054,7]
[364776229,1749238265538,-918.951478,0.00028054,7]
[364776230,1749238265548,-798.82,0.00028054,5]
[364776231,1749238265558,-151.0,0.00028054,7]
[364776232,1749238265567,-151.0,0.00028054,7]
[364776233,1749238265577,-480.0,0.00028054,5]
[364776234,1749238265587,-480.0,0.00028054,5]
[364776235,1749238265596,-151.0,0.00028054,7]
[364776236,1749238265606,-480.0,0.00028054,5]
[364776237,1749238265616,-841.94,0.00028054,5]
[364776238,1749238265625,-1110.18,0.00028054,5]
[364776239,1749238265634,-541.95,0.00028054,5]
[364776240,1749238265643,-501.99,0.00028054,5]
[364776241,1749238265652,-734.58,0.00028054,5]
[364776242,1749238265663,-940.18,0.00028054,5]
[364776243,1749238265673,-480.0,0.00028054,5]
[364776244,1749238265684,-2677.08,0.00028054,5]
[364776245,1749238265694,-748.04,0.00028054,5]
[364776246,1749238265705,-493.75,0.00028054,5]
[364776247,1749238265716,-480.0,0.00028054,5]
[364776248,1749238265727,-882.46,0.00028054,5]
[364776249,1749238265737,-480.0,0.00028054,5]
[364776250,1749238265747,-635.55,0.00028054,5]
[364776251,1749238265758,-577.7304328,0.00028054,5]
[364776252,1749238265767,-151.0,0.00028054,7]
[364776253,1749238265778,-526.86,0.00028054,5]
[364776254,1749238265788,-59280.37,0.00028054,5]
[364776255,1749238265798,-1593.82,0.00028054,5]
[364776256,1749238265810,-480.0,0.00028054,5]
[364776257,1749238265820,-2740.76,0.00028054,5]
[364776258,1749238265831,-480.0,0.00028054,5]
[364776259,1749238265841,-480.0,0.00028054,5]
[364776260,1749238265851,-151.0,0.00028054,7]
[364776261,1749238265861,-287.4155269,0.00028054,5]
[364776262,1749238266634,-808.6944731,0.00028054,5]
[364776263,1749238266645,-511.43,0.00028054,5]
[364776264,1749238266655,-480.0,0.00028054,5]
[364776265,1749238266664,-480.0,0.00028054,5]
[364776266,1749238266675,-1000.0,0.00028054,2]
[364776267,1749238266686,-1254.37,0.00028054,5]
[364776268,1749238266695,-8256.04,0.00028054,5]
[364776269,1749238266705,-480.0,0.00028054,5]
[364776270,1749238266715,-2434.11,0.00028054,5]
[364776271,1749238266724,-727.62926611,0.00028054,5]
[364776272,1749238266749,-1975.0,0.00027397,5]
[364776273,1749238266761,-6077.1,0.00027397,5]
[364776274,1749238266771,-3120.63839292,0.00028054,5]
[364776275,1749238267054,-246.05266771,0.00027397,5]
[364776276,1749238267063,-480.0,0.00027397,5]
[364776277,1749238267073,-480.0,0.00027397,5]
[364776278,1749238267082,-480.0,0.00027397,5]